bitfinex/quotes_ETHUSD_20250210
["timestamp","ask_amount","ask_price","bid_price","bid_amount"]
[1739216378049,4.51269,2681.1,2680.6,4.0075]
[1739216378561,4.51262,2681.1,2680.6,4.0075]
[1739216378759,0.7828,2681.1,2680.6,4.0075]
[1739216378961,4.51261,2681.1,2680.6,4.0075]
[1739216379191,3.73002,2681.0,2680.6,0.277]
[1739216379488,3.73017,2680.9,2680.6,0.277]
[1739216379788,3.73032,2680.8,2680.0,0.8249]
[1739216379969,3.73037,2680.7,2680.2,3.73094]
[1739216380367,4.51141,2680.9,2680.0,4.55619]
[1739216380368,3.73014,2680.9,2680.0,0.8249]
[1739216380691,0.2488,2681.3,2679.9,2.76489144]
[1739216380692,3.72998,2681.0,2680.5,3.73057]
[1739216380893,3.72998,2681.0,2680.4,0.8249]
[1739216381062,7.46002,2681.0,2680.4,4.55557]
[1739216381262,0.2488,2681.3,2681.0,3.72993]
[1739216381457,0.2488,2681.3,2681.0,3.72986]
[1739216381661,0.2488,2681.3,2681.1,3.72973]
[1739216381974,0.2488,2681.3,2681.1,4.00673]
[1739216382278,0.2488,2681.3,2681.1,0.277]
[1739216382460,0.2488,2681.3,2681.2,3.72967]
[1739216382926,0.2488,2681.3,2681.1,7.7366]
[1739216383772,0.2488,2681.3,2681.1,7.73653]
[1739216384095,0.2488,2681.3,2681.2,3.72967]
[1739216386774,0.2488,2681.3,2681.1,4.00673]
[1739216386977,3.72988,2681.1,2680.6,0.8249]
[1739216387302,1.0301,2681.3,2680.6,0.8249]
[1739216387303,3.73,2681.0,2680.6,0.277]
[1739216387479,0.7813,2680.8,2680.6,0.277]
[1739216387679,3.73036,2680.7,2680.6,0.277]
[1739216387991,3.73036,2680.7,2680.1,0.8249]
[1739216388318,3.73036,2680.7,2680.2,4.00797]
[1739216388492,3.73036,2680.7,2680.2,7.73893]
[1739216388699,0.7813,2680.8,2680.3,3.73091]
[1739216389001,4.51164,2680.8,2680.2,4.00796]
[1739216389193,0.7813,2680.8,2680.2,0.277]
[1739216389387,3.73047,2680.7,2680.2,4.00805]
[1739216390881,4.51156,2680.8,2680.2,7.73902]
[1739216391215,4.51156,2680.8,2680.2,4.00797]
[1739216391415,4.51156,2680.8,2680.2,7.73895]
[1739216392213,4.51156,2680.8,2680.2,0.277]
[1739216392214,0.7813,2680.8,2680.2,0.277]
[1739216392413,3.73049,2680.7,2680.2,0.277]
[1739216393378,3.73059,2680.6,2680.1,4.00717]
[1739216394320,3.73059,2680.6,2680.1,0.276]
[1739216394518,3.73049,2680.7,2680.2,3.73105]
[1739216395423,3.73052,2680.6,2680.2,3.73105]
[1739216395828,3.73052,2680.6,2680.1,0.276]
[1739216396119,3.73052,2680.6,2680.1,4.00712]
[1739216396991,3.73072,2680.5,2680.1,0.276]
[1739216397226,0.7608,2680.3,2680.0,0.276]
[1739216397520,0.7608,2680.3,2680.0,4.00731]
[1739216399197,3.73148,2679.9,2679.8,3.734]
[1739216399398,3.73106,2680.2,2679.5,4.8286]
[1739216399603,3.73182,2679.7,2679.5,0.276]
[1739216399841,3.73158,2679.9,2679.5,0.276]
[1739216400141,0.55,2680.2,2679.5,0.276]
[1739216400346,3.73134,2680.0,2679.5,0.276]
[1739216400631,3.73117,2680.2,2679.8,0.8186]
[1739216400805,3.73117,2680.2,2679.7,3.73169]
[1739216400806,3.73121,2680.1,2679.5,4.82654]
[1739216400996,3.73157,2679.9,2679.5,1.0946]
[1739216401196,4.55203,2679.8,2679.5,0.276]
[1739216401627,0.8204,2679.8,2679.5,0.276]
[1739216401834,3.73179,2679.7,2679.5,0.276]
[1739216402034,3.73179,2679.7,2679.2,0.276]
[1739216402659,0.8204,2679.8,2679.3,3.73224]
[1739216402803,4.55202,2679.8,2679.3,3.73224]
[1739216403154,0.8204,2679.8,2679.3,3.73224]
[1739216403353,0.8204,2679.8,2679.4,3.73214]
[1739216405021,0.7905,2680.1,2679.5,3.73193]
[1739216405222,3.73142,2680.0,2679.4,3.73214]
[1739216405423,0.7905,2680.1,2679.3,6.22120144]
[1739216405623,0.7905,2680.1,2679.6,3.73188]
[1739216405624,4.52178,2680.1,2679.6,3.73188]
[1739216406236,0.7905,2680.1,2679.7,3.73168]
[1739216406461,0.7905,2680.5,2680.3,3.73081]
[1739216406605,3.73032,2680.8,2680.3,3.73081]
[1739216406806,3.73037,2680.7,2680.1,3.7311]
[1739216407140,0.7905,2680.5,2680.0,3.73128]
[1739216407439,4.5212,2680.5,2680.0,7.46428]
[1739216407836,0.7905,2680.5,2680.1,3.73117]
[1739216408037,0.7905,2680.5,2680.2,3.73105]
[1739216408423,3.73028,2680.8,2680.2,3.73105]
[1739216408605,3.73028,2680.8,2680.3,3.73079]
[1739216408943,0.7905,2680.9,2680.0,38.7312]
[1739216409143,7.46117,2680.6,2680.0,39.5347]
[1739216409438,3.73058,2680.6,2680.0,39.5347]
[1739216409742,3.73072,2680.5,2680.0,39.5347]
[1739216410039,3.73072,2680.5,2680.0,35.8035]
[1739216410246,0.7905,2680.5,2680.0,35.276]
[1739216410417,3.73081,2680.4,2680.0,35.276]
[1739216410754,3.73046,2680.7,2680.0,39.00722]
[1739216410956,3.73046,2680.7,2680.2,3.73103]
[1739216411361,3.73046,2680.7,2680.0,39.00722]
[1739216411528,3.73046,2680.7,2680.1,3.73112]
[1739216411856,3.73067,2680.5,2680.0,42.73848]
[1739216412038,3.73036,2680.7,2680.0,39.00722]
[1739216412239,7.46084,2680.7,2680.1,3.73118]
[1739216412439,3.73036,2680.7,2680.0,39.00722]
[1739216412607,3.73036,2680.7,2680.2,7.462]
[1739216412810,3.73036,2680.7,2680.2,7.46193]
[1739216413085,3.73036,2680.7,2680.2,3.73096]
[1739216413494,3.73036,2680.7,2680.2,7.46195]
[1739216413694,3.73036,2680.7,2680.0,4.00725]
[1739216413891,3.73036,2680.7,2680.1,3.73113]
[1739216414045,3.73078,2680.4,2680.0,4.00725]
[1739216414245,3.73075,2680.5,2680.0,4.00725]
[1739216414662,4.28045,2680.7,2680.1,3.73109]
[1739216414876,4.28045,2680.7,2680.0,0.276]
[1739216415394,3.73061,2680.6,2680.0,4.00725]
[1739216415697,3.73061,2680.6,2680.1,3.73117]
[1739216416000,0.55,2680.7,2680.1,3.73117]
[1739216416298,0.7905,2680.8,2680.5,3.73064]
[1739216416890,0.7905,2680.8,2680.3,39.53436]
[1739216417074,0.7905,2680.8,2680.4,3.73077]
[1739216417271,0.7905,2680.8,2680.3,38.53436]
[1739216417589,0.7905,2680.8,2680.4,3.73075]
[1739216417925,4.53673,2681.0,2680.5,3.73063]
[1739216418290,3.73009,2680.9,2680.5,3.73063]
[1739216418827,3.73009,2680.9,2680.4,3.73076]
[1739216419263,3.73063,2680.6,2680.1,3.73111]
[1739216419464,4.53745,2680.5,2680.1,0.275]
[1739216420600,4.53745,2680.5,2680.2,3.73103]
[1739216420601,0.8067,2680.5,2680.2,3.73103]
[1739216421368,4.53737,2680.5,2680.1,0.275]
[1739216421694,8.26814,2680.5,2680.1,0.275]
[1739216421895,3.73079,2680.4,2680.1,0.275]
[1739216422099,4.53737,2680.5,2680.1,0.275]
[1739216424174,4.53737,2680.5,2680.1,4.0062]
[1739216424409,0.8067,2680.5,2680.1,4.0062]
[1739216426007,0.8067,2680.5,2680.1,0.275]
[1739216426178,4.53744,2680.5,2680.1,0.275]
[1739216426810,0.8067,2680.5,2680.1,4.00616]
[1739216427790,4.53745,2680.5,2680.1,0.275]
[1739216428287,4.53745,2680.5,2680.1,4.00618]
[1739216428611,0.8067,2680.5,2680.1,4.00618]
[1739216429109,0.8067,2680.5,2680.2,3.73102]
[1739216429406,5.08709,2680.7,2680.2,3.73102]
[1739216429612,5.08709,2680.7,2680.2,3.73093]
[1739216430709,1.3567,2680.7,2680.1,4.00618]
[1739216431016,3.73053,2680.6,2680.1,4.00611]
[1739216431218,3.73053,2680.6,2680.1,7.73725]
[1739216431931,1.3567,2680.7,2680.1,0.275]
[1739216432110,3.73072,2680.5,2680.1,0.275]
[1739216432282,8.81762,2680.7,2680.1,0.275]
[1739216432486,3.73052,2680.6,2680.2,3.73105]
[1739216432884,3.73067,2680.5,2680.1,0.275]
[1739216433407,1.3567,2680.7,2680.1,4.00611]
[1739216433408,3.7305,2680.6,2680.1,4.00611]
[1739216433907,3.73069,2680.5,2680.1,0.275]
[1739216434104,3.73077,2680.5,2680.1,0.275]
[1739216434292,3.73078,2680.4,2680.1,0.275]
[1739216434822,3.73059,2680.6,2680.1,4.00615]
[1739216436818,3.7305,2680.6,2680.1,0.275]
[1739216437335,3.73068,2680.5,2680.1,4.00618]
[1739216439227,5.08716,2680.7,2680.1,4.00618]
[1739216439228,3.73052,2680.6,2680.1,7.7373]
[1739216439528,3.73052,2680.6,2680.1,4.00612]
[1739216440404,1.3567,2680.7,2680.1,0.275]
[1739216440611,3.73071,2680.5,2680.1,0.275]
[1739216440996,3.73071,2680.5,2680.1,4.00618]
[1739216441307,3.73071,2680.5,2680.1,0.275]
[1739216445804,3.73071,2680.5,2677.8,1.81126927]
[1739216445805,0.55,2680.1,2679.6,0.72806018]
[1739216446132,3.73153,2679.9,2679.4,0.106]
[1739216446331,0.55,2680.0,2679.4,3.8381]
[1739216446535,0.55,2680.0,2679.4,0.106]
[1739216446742,3.73155,2679.9,2679.4,0.106]
[1739216446904,3.73155,2679.9,2679.4,3.83816]
[1739216447107,3.7315,2679.9,2679.4,3.83816]
[1739216447413,0.55,2680.2,2679.7,3.73169]
[1739216447599,4.28109,2680.2,2679.7,3.73169]
[1739216448048,4.28109,2680.2,2679.6,3.73182]
[1739216448222,4.28109,2680.2,2679.6,7.46364]
[1739216448424,8.01225,2680.2,2679.6,3.73182]
[1739216448624,0.55,2680.2,2679.4,3.83809]
[1739216448825,3.73149,2679.9,2679.4,3.83809]
[1739216449705,3.73156,2679.9,2679.4,0.106]
[1739216449906,3.73157,2679.9,2679.4,0.106]
[1739216450138,3.73155,2679.9,2679.4,0.106]
[1739216450565,3.73175,2679.8,2679.4,0.106]
[1739216451037,3.73155,2679.9,2679.4,0.106]
[1739216451339,3.7317,2679.8,2679.4,0.106]
[1739216451501,0.55,2679.9,2679.4,3.8381]
[1739216451708,0.55,2679.9,2679.5,35.0]
[1739216451943,0.55,2680.2,2679.5,35.0]
[1739216452145,3.73168,2679.8,2679.5,35.0]
[1739216452437,0.55,2680.2,2679.5,35.0]
[1739216452641,3.73153,2679.9,2679.5,35.0]
[1739216452838,0.55,2680.0,2679.5,35.0]
[1739216453037,3.73135,2680.0,2679.5,38.73197]
[1739216453542,3.73138,2680.0,2679.5,38.73197]
[1739216454039,3.73129,2680.1,2679.6,3.73179]
[1739216454240,5.08763,2680.3,2679.7,3.73174]
[1739216454450,4.28106,2680.2,2679.7,7.46343]
[1739216454768,7.46166,2680.4,2679.8,3.83753]
[1739216455062,3.73101,2680.3,2679.8,3.83753]
[1739216455443,3.73113,2680.2,2679.8,0.106]
[1739216455815,3.73101,2680.3,2679.8,0.106]
[1739216456009,3.73122,2680.1,2679.8,0.106]
[1739216457119,0.7579,2680.0,2679.6,3.73179]
[1739216457664,4.48927,2680.0,2679.6,3.73179]
[1739216458023,0.7579,2680.0,2679.6,3.73179]
[1739216459023,0.7579,2680.0,2679.6,7.46361]
[1739216459225,0.7579,2680.0,2679.6,3.73179]
[1739216459429,0.7579,2680.0,2679.6,7.4636]
[1739216459867,0.7579,2680.0,2679.6,3.73179]
[1739216460424,0.7579,2680.0,2679.7,3.73169]
[1739216460623,3.73122,2680.1,2679.7,3.73169]
[1739216461449,0.55,2680.1,2679.7,3.73169]
[1739216461894,3.73095,2680.3,2679.7,3.73169]
[1739216461895,3.73095,2680.3,2679.8,3.73154]
[1739216462090,3.73095,2680.3,2679.9,0.106]
[1739216462461,7.46198,2680.3,2679.9,0.106]
[1739216462890,4.48861,2680.5,2680.0,3.73134]
[1739216463103,0.7939,2680.7,2679.9,2.59489144]
[1739216463271,4.52427,2680.7,2680.2,3.73094]
[1739216463590,3.73074,2680.5,2680.0,3.73126]
[1739216463794,3.73079,2680.4,2680.0,7.46426]
[1739216464092,3.73079,2680.4,2680.0,3.733]
[1739216464388,3.73101,2680.3,2680.0,3.733]
[1739216465160,3.73131,2680.1,2679.8,0.275]
[1739216466886,0.7939,2680.6,2679.8,0.275]
[1739216467088,3.73134,2680.0,2679.8,0.275]
[1739216467395,3.73148,2679.9,2679.8,0.275]
[1739216467611,0.7939,2679.8,2679.1,0.106]
[1739216467897,7.46477,2679.3,2678.9,0.106]
[1739216468196,3.73233,2679.3,2678.9,0.106]
[1739216470002,3.73247,2679.2,2678.9,0.106]
[1739216472524,0.7939,2679.6,2678.9,0.106]
[1739216472670,7.46426,2679.5,2678.9,3.83882]
[1739216473026,3.73213,2679.5,2679.0,3.735]
[1739216473233,3.73213,2679.5,2679.0,7.46769]
[1739216473528,3.73218,2679.4,2679.0,3.735]
[1739216473670,3.73234,2679.3,2679.0,3.735]
[1739216473869,3.73234,2679.3,2678.9,3.841]
[1739216474067,3.73264,2679.1,2678.9,0.106]
[1739216474302,3.73264,2679.1,2678.9,0.381]
[1739216474497,7.46485,2679.3,2678.9,0.381]
[1739216474669,3.7324,2679.3,2678.9,0.381]
[1739216474872,7.46483,2679.3,2678.9,0.381]
[1739216475108,7.4648,2679.3,2678.9,0.381]
[1739216475309,7.46479,2679.3,2678.9,0.381]
[1739216475873,3.73239,2679.3,2678.9,0.381]
[1739216476185,3.73239,2679.3,2678.9,3.381]
[1739216477025,3.73179,2679.7,2678.9,0.381]
[1739216477203,3.73189,2679.7,2679.3,0.106]
[1739216478407,3.73176,2679.8,2679.3,0.106]
[1739216478594,3.73171,2679.8,2679.3,0.106]
[1739216478983,7.46345,2679.8,2679.3,0.106]
[1739216479329,3.73172,2679.8,2679.3,3.8383]
[1739216479488,4.52532,2680.0,2679.3,3.83821]
[1739216479676,3.73163,2679.8,2679.3,3.8382]
[1739216479875,4.52532,2680.0,2679.5,3.73194]
[1739216480075,0.73379279,2680.4,2679.7,3.73172]
[1739216480076,4.49993,2680.2,2679.7,3.73172]
[1739216480334,0.7688,2680.5,2679.9,3.73139]
[1739216480533,4.49949,2680.5,2680.0,3.73126]
[1739216480829,4.49949,2680.5,2679.9,3.73139]
[1739216481307,3.73087,2680.4,2679.8,3.8376]
[1739216482327,3.73087,2680.4,2679.9,3.73144]
[1739216482623,3.73079,2680.4,2679.9,3.7314]
[1739216482984,4.49944,2680.5,2679.9,3.73139]
[1739216483184,4.49944,2680.5,2679.9,7.46277]
[1739216483798,4.49944,2680.5,2679.9,7.46278]
[1739216484439,7.46092,2680.7,2680.1,3.83712]
[1739216484715,3.7305,2680.6,2680.1,0.106]
[1739216485219,3.73045,2680.7,2680.1,0.106]
[1739216485523,7.4609,2680.7,2680.1,3.83713]
[1739216485694,3.73045,2680.7,2680.1,3.83713]
[1739216486105,3.73052,2680.6,2680.1,3.83713]
[1739216487615,3.73071,2680.5,2680.1,0.106]
[1739216487833,3.73093,2680.3,2680.1,0.106]
[1739216488150,3.73083,2680.4,2680.1,0.106]
[1739216488578,3.73068,2680.5,2680.1,0.106]
[1739216488964,3.73079,2680.4,2680.1,0.106]
[1739216489581,3.73079,2680.4,2680.0,2.48889144]
[1739216489582,3.73103,2680.3,2680.0,2.48889144]
[1739216489735,3.73079,2680.4,2680.0,2.48889144]
[1739216490032,7.46167,2680.4,2680.0,2.48889144]
[1739216490384,3.73079,2680.4,2680.0,2.48889144]
[1739216490558,0.7688,2680.6,2679.9,0.106]
[1739216490559,3.73109,2680.2,2679.9,0.106]
[1739216493648,3.73087,2680.4,2679.9,0.106]
[1739216493846,3.731,2680.3,2679.9,0.106]
[1739216494373,3.73065,2680.5,2680.0,3.73132]
[1739216494558,3.73065,2680.5,2680.0,6.22021144]
[1739216496989,3.73065,2680.5,2680.0,9.95148144]
[1739216497286,3.73065,2680.5,2680.0,6.22016144]
[1739216497484,3.73046,2680.7,2680.1,3.73113]
[1739216497689,3.73046,2680.7,2680.2,3.83706]
[1739216498051,7.46093,2680.7,2680.2,3.83706]
[1739216498380,3.73053,2680.6,2680.2,3.83706]
[1739216498791,3.73053,2680.6,2680.2,0.106]
[1739216499765,3.73046,2680.7,2680.2,0.106]
[1739216500094,7.46142,2680.5,2680.2,0.106]
[1739216500865,3.73067,2680.5,2680.2,0.106]
[1739216503097,3.73081,2680.4,2680.2,0.106]
[1739216503705,7.46167,2680.4,2679.9,4.11246]
[1739216504403,3.73081,2680.4,2679.9,4.11246]
[1739216505412,3.73107,2680.2,2679.9,0.381]
[1739216505984,3.73083,2680.4,2679.9,4.11241]
[1739216506510,3.73077,2680.5,2680.0,3.73131]
[1739216507125,3.73091,2680.4,2679.9,4.11241]
[1739216508318,3.73092,2680.4,2679.9,4.11243]
[1739216508717,3.73094,2680.3,2679.9,0.381]
[1739216508913,3.73094,2680.3,2679.9,4.11247]
[1739216509220,3.73067,2680.5,2679.9,4.11247]
[1739216509408,3.73099,2680.3,2679.9,0.381]
[1739216510141,3.73074,2680.5,2679.9,4.11239]
[1739216510303,3.73093,2680.3,2679.9,0.381]
[1739216511739,3.73093,2680.3,2679.9,0.106]
[1739216511891,3.73115,2680.2,2679.9,0.381]
[1739216512093,0.7542,2680.4,2679.9,0.381]
[1739216512405,3.73099,2680.3,2679.9,4.11242]
[1739216513622,3.73075,2680.5,2679.9,0.381]
[1739216513795,3.7305,2680.7,2680.2,3.73098]
[1739216514109,3.7305,2680.7,2680.2,3.73104]
[1739216514528,3.73061,2680.6,2680.1,3.7312]
[1739216514930,3.72995,2681.0,2680.1,3.7312]
[1739216515136,3.73062,2680.6,2680.1,3.7312]
[1739216516232,3.73065,2680.5,2680.1,3.7312]
[1739216517138,0.73602998,2681.2,2680.2,0.106]
[1739216517309,0.2488,2681.3,2681.0,2.59489144]
[1739216517510,0.2488,2681.3,2681.2,3.72967]
[1739216517740,0.2488,2681.3,2681.2,3.83567]
[1739216518282,0.2488,2681.3,2681.2,0.106]
[1739216518534,0.2488,2681.3,2681.2,3.83567]
[1739216518898,0.2488,2681.3,2681.2,7.38567]
[1739216519434,0.2488,2681.6,2681.2,7.31695729]
[1739216519620,0.2488,2681.6,2681.5,7.38525]
[1739216519936,0.2488,2681.6,2681.5,11.11625]
[1739216520119,0.2488,2681.6,2681.5,3.837]
[1739216520319,0.2488,2681.6,2681.5,7.56625]
[1739216521035,0.2488,2681.6,2681.5,10.05514144]
[1739216521837,0.2488,2681.6,2681.5,7.56625]
[1739216522038,0.2488,2681.6,2681.5,42.56625]
[1739216523232,0.2488,2681.6,2681.5,7.56625]
[1739216523844,0.2488,2681.6,2681.5,8.30232545]
[1739216529050,0.2488,2681.6,2681.5,4.46707545]
[1739216529215,3.97791,2681.6,2681.2,0.274]
[1739216529417,3.72934,2681.5,2681.2,0.274]
[1739216530717,0.2488,2681.6,2681.2,4.00363]
[1739216530947,3.97801,2681.6,2681.2,0.274]
[1739216531534,0.7938,2681.5,2681.1,3.7298]
[1739216531717,3.72962,2681.3,2680.7,3.83629]
[1739216532052,0.7938,2681.5,2680.8,0.274]
[1739216532258,3.72983,2681.1,2680.8,0.274]
[1739216532741,3.72996,2681.0,2680.8,0.274]
[1739216533049,3.72983,2681.1,2680.8,0.274]
[1739216533667,7.45977,2681.1,2680.8,0.274]
[1739216533866,3.72983,2681.1,2680.8,0.274]
[1739216534027,3.73004,2681.0,2680.5,4.85353083]
[1739216534227,3.73004,2681.0,2680.5,4.11054]
[1739216534427,3.72983,2681.1,2680.5,39.11054]
[1739216534645,3.72983,2681.1,2680.6,3.7305]
[1739216535350,3.72967,2681.2,2680.5,39.11064]
[1739216535517,3.72967,2681.2,2680.7,3.73034]
[1739216535918,3.72967,2681.2,2680.8,35.0]
[1739216537057,3.72967,2681.2,2680.7,3.73034]
[1739216538355,3.72967,2681.2,2680.8,35.0]
[1739216539049,3.72939,2681.4,2680.8,35.0]
[1739216539383,3.73087,2680.4,2680.0,0.106]
[1739216539542,3.73087,2680.4,2679.7,6.22058144]
[1739216539543,0.7585,2680.4,2680.2,0.274]
[1739216539744,4.48939,2680.4,2680.2,0.274]
[1739216539947,0.7585,2680.4,2680.2,0.274]
[1739216540306,0.7585,2680.4,2680.1,0.274]
[1739216540592,4.48931,2680.4,2680.1,0.274]
[1739216541191,0.7585,2680.4,2680.1,0.274]
[1739216541490,3.73092,2680.3,2680.1,0.274]
[1739216541656,3.73092,2680.3,2679.7,3.73166]
[1739216541856,3.73126,2680.1,2679.6,3.73188]
[1739216542200,0.7585,2680.4,2679.6,0.274]
[1739216542380,0.7585,2679.9,2679.6,0.274]
[1739216542538,3.7317,2679.8,2679.1,3.73259]
[1739216542743,4.49077,2679.4,2678.9,5.374]
[1739216543146,0.7585,2679.4,2678.9,9.10679]
[1739216543348,0.7585,2679.8,2678.9,9.109]
[1739216543561,0.7585,2679.8,2679.4,3.73211]
[1739216543779,0.7585,2679.8,2679.1,0.106]
[1739216543780,0.7585,2679.8,2679.5,3.73202]
[1739216543962,0.7585,2680.1,2679.5,3.73202]
[1739216544291,0.7585,2680.1,2679.4,0.0373176]
[1739216544501,0.7585,2680.1,2679.7,3.73168]
[1739216544990,3.73088,2680.4,2679.8,35.0]
[1739216545139,3.73088,2680.4,2679.8,38.73157]
[1739216545345,4.48922,2680.5,2679.9,3.73139]
[1739216545695,0.7585,2680.5,2680.1,3.7311]
[1739216545894,4.48861,2680.9,2680.3,3.73083]
[1739216546195,4.48861,2680.9,2680.2,38.73098]
[1739216546376,0.7585,2680.9,2680.4,3.7307]
[1739216546587,0.7585,2680.9,2680.5,3.73062]
[1739216546751,3.72984,2681.1,2680.5,7.46118]
[1739216546950,3.72984,2681.1,2680.5,3.73056]
[1739216547292,7.45977,2681.1,2680.5,3.73056]
[1739216547502,3.72984,2681.1,2680.5,3.73056]
[1739216547851,7.45975,2681.1,2680.5,3.73056]
[1739216548051,3.72996,2681.0,2680.5,3.73056]
[1739216548251,3.72984,2681.1,2680.3,0.106]
[1739216548252,3.73058,2680.6,2680.3,0.106]
[1739216548511,4.48908,2680.6,2680.0,3.274]
[1739216548823,3.73065,2680.5,2680.0,3.274]
[1739216549026,3.73078,2680.4,2680.1,35.0]
[1739216549233,3.73101,2680.3,2679.8,0.274]
[1739216549402,3.73101,2680.3,2679.8,4.008]
[1739216549938,3.73075,2680.5,2679.9,3.73138]
[1739216550145,3.73072,2680.5,2679.9,3.73138]
[1739216550340,3.73086,2680.4,2679.9,3.73138]
[1739216550516,3.73072,2680.5,2679.8,4.00558]
[1739216550725,3.73108,2680.2,2679.8,0.274]
[1739216550909,4.4897,2680.1,2679.8,0.274]
[1739216551245,4.4897,2680.1,2679.2,0.106]
[1739216551246,3.73221,2679.4,2679.2,0.106]
[1739216551444,2.48889144,2680.3,2679.1,0.274]
[1739216551445,3.73213,2679.5,2679.1,0.274]
[1739216551643,0.7585,2679.6,2679.2,3.73243]
[1739216551841,3.73154,2679.9,2679.3,3.7323]
[1739216551842,4.49004,2679.9,2679.3,3.7323]
[1739216552044,0.7585,2679.9,2679.2,0.03732073]
[1739216552251,2.48889144,2680.3,2679.2,0.03732073]
[1739216552252,0.7585,2680.2,2679.7,3.73173]
[1739216552553,4.48957,2680.2,2679.6,3.73177]
[1739216553112,3.7313,2680.1,2679.4,38.83807]
[1739216553314,3.73135,2680.0,2679.4,38.83807]
[1739216553632,3.73135,2680.0,2679.4,42.57017]
[1739216553835,3.7313,2680.1,2679.4,38.73207]
[1739216554049,3.7313,2680.1,2679.6,3.73186]
[1739216554527,0.7585,2680.2,2679.7,3.73174]
[1739216554932,0.7585,2680.2,2679.4,38.73209]
[1739216555141,3.7312,2680.1,2679.4,35.274]
[1739216555338,3.73159,2679.9,2679.4,35.274]
[1739216555520,0.7585,2679.8,2679.4,35.0]
[1739216555916,4.49016,2679.8,2679.4,35.0]
[1739216556120,0.7585,2679.8,2679.4,35.0]
[1739216556758,0.7585,2679.8,2679.4,3.73216]
[1739216558551,0.7585,2679.8,2679.4,7.46426]
[1739216558756,0.7585,2679.8,2679.4,3.7321]
[1739216559558,4.49015,2679.8,2679.3,3.73217]
[1739216559762,3.73179,2679.7,2679.2,4.1124]
[1739216559962,3.73179,2679.7,2679.3,3.734]
[1739216560161,0.7585,2679.8,2679.0,6.73266]
[1739216560318,4.49021,2679.8,2679.0,7.00766]
[1739216560522,4.49021,2679.8,2679.2,3.73242]
[1739216560719,0.7585,2679.8,2679.2,3.73242]
[1739216560928,3.73179,2679.7,2679.2,3.73238]
[1739216561848,3.73179,2679.7,2679.2,3.73237]
[1739216562154,3.73179,2679.7,2679.2,7.46474]
[1739216562358,3.73179,2679.7,2679.2,3.73237]
[1739216562554,0.7585,2679.8,2679.4,3.73212]
[1739216562857,4.49013,2679.8,2679.3,3.73221]
[1739216563344,4.49013,2679.8,2679.3,7.46444]
[1739216563859,0.7585,2679.8,2679.4,3.73215]
[1739216564360,0.7585,2679.8,2679.4,3.72015]
[1739216565220,0.7585,2679.8,2679.1,0.03731957]
[1739216565221,0.7585,2679.8,2679.1,3.73251]
[1739216565424,3.73183,2679.7,2679.1,7.46499]
[1739216565632,7.4637,2679.7,2679.2,7.46744]
[1739216565849,3.73196,2679.6,2679.2,3.735]
[1739216566049,3.73183,2679.7,2679.2,3.735]
[1739216566324,3.73183,2679.7,2679.2,7.46735]
[1739216566539,3.73183,2679.7,2679.2,3.735]
[1739216566737,3.73183,2679.7,2679.3,3.73228]
[1739216567158,3.73183,2679.7,2679.2,7.46745]
[1739216567657,3.73183,2679.7,2679.3,3.73229]
[1739216569020,3.73183,2679.7,2679.2,7.46743]
[1739216569841,3.73183,2679.7,2679.2,3.735]
[1739216570042,3.7319,2679.6,2679.2,3.735]
[1739216571165,0.7594,2679.4,2678.7,0.8627515]
[1739216571374,3.73231,2679.3,2678.8,0.275]
[1739216571664,0.7594,2679.4,2678.8,0.275]
[1739216572158,3.73266,2679.1,2678.8,0.275]
[1739216572560,7.46533,2679.1,2678.8,0.275]
[1739216572768,3.73266,2679.1,2678.8,0.275]
[1739216573332,3.73274,2679.0,2678.5,6.83936]
[1739216573527,3.73266,2679.1,2678.6,3.73322]
[1739216574034,3.73266,2679.1,2678.5,4.11442]
[1739216574343,3.73266,2679.1,2678.6,3.73319]
[1739216574552,3.73247,2679.2,2678.7,3.7331]
[1739216574772,0.7594,2679.4,2678.5,0.381]
[1739216574973,3.73285,2679.0,2678.5,0.381]
[1739216575183,3.73285,2679.0,2678.5,7.85034]
[1739216575689,3.73285,2679.0,2678.5,4.117]
[1739216575891,3.73283,2679.0,2678.5,4.117]
[1739216576079,4.49227,2678.9,2678.5,4.011]
[1739216576277,0.7594,2678.9,2678.5,4.011]
[1739216576791,4.49234,2678.9,2678.5,4.011]
[1739216576953,0.7594,2678.9,2678.5,4.011]
[1739216577695,0.7594,2678.9,2678.5,0.275]
[1739216577865,4.49237,2678.9,2678.4,0.76557918]
[1739216578065,3.73301,2678.8,2678.4,0.76557918]
[1739216578269,3.73301,2678.8,2678.4,4.50157918]
[1739216578961,4.49237,2678.9,2678.4,4.50157918]
[1739216579168,4.49236,2678.9,2678.4,0.76557918]
[1739216579369,0.7594,2678.9,2678.1,0.275]
[1739216579594,3.73301,2678.8,2678.1,0.275]
[1739216579779,3.73301,2678.8,2678.2,3.73383]
[1739216580491,0.7594,2678.9,2678.2,3.73383]
[1739216580657,3.73309,2678.8,2678.2,3.73376]
[1739216581290,3.73315,2678.7,2678.1,0.275]